[Event "AI Cup Div-3 2023"]
[Site "Online"]
[Date "2023.09.26"]
[Round "3.3"]
[White "Alekseev, Evgeny"]
[Black "Tomashevsky, Evgeny"]
[Result "1-0"]
[Annotator "ChessBase"]
[ECO "A13"]
[WhiteElo "2573"]
[BlackElo "2694"]
[PlyCount "135"]
[EventDate "2023.09.18"]
[EventType "k.o."]
[EventCountry "NET"]
[SourceTitle "playchess.com"]
[Source "ChessBase"]
[SourceQuality "1"]
[TimeControl "900+3"]

1. Nf3 {[%emt 0:00:10]} d5 {[%emt 0:01:38]} 2. e3 {[%emt 0:00:05]} Nf6 {[%emt 0:00:07]} 3. c4 {[%emt 0:00:05]} e6 {[%emt 0:00:05]} 4. Nc3 {[%emt 0:00:10]} Be7 {[%emt 0:00:04]} 5. b3 {[%emt 0:00:08]} O-O {[%emt 0:00:07]} 6. Bb2 {[%emt 0:00:05]} c5 {[%emt 0:00:04]} 7. cxd5 {[%emt 0:00:06]} exd5 {[%emt 0:00:05]} 8. d4 {[%emt 0:00:06]} Nc6 {[%emt 0:00:11]} 9. Bb5 {[%emt 0:00:44]} Bg4 {[%emt 0:00:46]} 10. Bxc6 {[%emt 0:00:55]} bxc6 {[%emt 0:00:11]} 11. dxc5 {[%emt 0:00:08]} Bxc5 {[%emt 0:01:40]} 12. O-O {[%emt 0:00:06]} Bd6 {[%emt 0:00:23]} 13. Ne2 {[%emt 0:00:14]} Ne4 {[%emt 0:00:22]} 14. Ne5 {[%emt 0:01:36]} Bxe5 {[%emt 0:00:22]} 15. Bxe5 {[%emt 0:00:06]} Re8 {[%emt 0:00:06]} 16. Bb2 {[%emt 0:00:28]} Qg5 {[%emt 0:00:21]} 17. Qe1 {[%emt 0:01:22]} Bxe2 {[%emt 0:01:12]} 18. Qxe2 {[%emt 0:00:05]} Re6 {[%emt 0:00:04]} 19. Rac1 {[%emt 0:00:33]} Rae8 {[%emt 0:00:45]} 20. Bd4 {[%emt 0:01:24]} Qh4 {[%emt 0:00:25]} 21. f3 {[%emt 0:00:49]} Nd6 {[%emt 0:02:27]} 22. Bxa7 {[%emt 0:01:37]} Nf5 {[%emt 0:01:01]} 23. Qf2 {[%emt 0:00:07]} Qh5 {[%emt 0:00:05]} 24. Rfe1 {[%emt 0:00:24]} Nh4 {[%emt 0:00:19]} 25. Kh1 {[%emt 0:00:18]} Rh6 {[%emt 0:00:20]} 26. Bd4 {[%emt 0:00:30]} Qg6 {[%emt 0:00:26]} 27. e4 {[%emt 0:00:24]} dxe4 {[%emt 0:00:05]} 28. Rxe4 {[%emt 0:00:26]} Rxe4 {[%emt 0:00:11]} 29. fxe4 {[%emt 0:00:04]} Qd6 {[%emt 0:00:20]} 30. Be3 {[%emt 0:00:19]} Rh5 {[%emt 0:00:25]} 31. g4 {[%emt 0:00:28]} Re5 {[%emt 0:00:19]} 32. Qxh4 {[%emt 0:00:25]} Qd3 {[%emt 0:00:04]} 33. Bf2 {[%emt 0:00:20]} h5 {[%emt 0:00:18]} 34. Re1 {[%emt 0:00:15]} Rxe4 {[%emt 0:00:23]} 35. Qg3 {[%emt 0:00:25]} Rxe1+ {[%emt 0:00:14]} 36. Bxe1 {[%emt 0:00:03]} Qf1+ {[%emt 0:00:15]} 37. Qg1 {[%emt 0:00:05]} Qe2 {[%emt 0:00:04]} 38. h3 {[%emt 0:00:18]} hxg4 {[%emt 0:00:04]} 39. hxg4 {[%emt 0:00:07]} Qxa2 {[%emt 0:00:05]} 40. Qe3 {[%emt 0:00:07]} Qb1 {[%emt 0:00:04]} 41. Kg2 {[%emt 0:00:05]} f6 {[%emt 0:00:05]} 42. Bg3 {[%emt 0:00:07]} Qc2+ {[%emt 0:00:04]} 43. Bf2 {[%emt 0:00:05]} Qb1 {[%emt 0:00:04]} 44. Kg3 {[%emt 0:00:04]} Kh7 {[%emt 0:00:05]} 45. Qf3 {[%emt 0:00:05]} Kg6 {[%emt 0:00:05]} 46. Bd4 {[%emt 0:00:07]} Qc2 {[%emt 0:00:04]} 47. Bf2 {[%emt 0:00:09]} c5 {[%emt 0:00:04]} 48. Qe3 {[%emt 0:00:13]} c4 {[%emt 0:00:04]} 49. b4 {[%emt 0:00:05]} c3 {[%emt 0:00:04]} 50. b5 {[%emt 0:00:05]} Qb3 {[%emt 0:00:05]} 51. b6 {[%emt 0:00:05]} Qb4 {[%emt 0:00:05]} 52. Qd3+ {[%emt 0:00:05]} Kf7 {[%emt 0:00:04]} 53. Qd5+ {[%emt 0:00:04]} Ke8 {[%emt 0:00:06]} 54. Qd4 {[%emt 0:00:05]} Qb3 {[%emt 0:00:06]} 55. Qe3+ {[%emt 0:00:04]} Kd7 {[%emt 0:00:04]} 56. Qd3+ {[%emt 0:00:04]} Kc6 {[%emt 0:00:04]} 57. Bd4 {[%emt 0:00:05]} Qb4 {[%emt 0:00:06]} 58. Bxc3 {[%emt 0:00:05]} Qxb6 {[%emt 0:00:05]} 59. Qe4+ {[%emt 0:00:03]} Kb5 {[%emt 0:00:04]} 60. Bd2 {[%emt 0:00:04]} Qc6 {[%emt 0:00:04]} 61. Qd3+ {[%emt 0:00:05]} Qc4 {[%emt 0:00:03]} 62. Qd7+ {[%emt 0:00:04]} Qc6 {[%emt 0:00:04]} 63. Qd3+ {[%emt 0:00:04]} Qc4 {[%emt 0:00:03]} 64. Qe3 {[%emt 0:00:03]} Qc5 {[%emt 0:00:04]} 65. Kf2 {[%emt 0:00:04]} Qxe3+ {[%emt 0:00:04]} 66. Bxe3 {[%emt 0:00:03]} Kc6 {[%emt 0:00:04]} 67. Kf3 {[%emt 0:00:03]} Kd7 {[%emt 0:00:03]} 68. Kf4 {[%emt 0:00:03]} 1-0

[Event "AI Cup Div-3 2023"]
[Site "Online"]
[Date "2023.09.26"]
[Round "4.1"]
[White "Mamedov, Rauf"]
[Black "Robson, Ray"]
[Result "1/2-1/2"]
[Annotator "TA"]
[ECO "C50"]
[WhiteElo "2640"]
[BlackElo "2699"]
[PlyCount "142"]
[EventDate "2023.09.18"]
[EventType "k.o."]
[EventCountry "NET"]
[SourceTitle "playchess.com"]
[Source "ChessBase"]
[SourceQuality "1"]
[TimeControl "900+3"]

{[%evp 13,142,0,6,-6,9,0,0,0,28,0,0,0,10,-2,0,-22,-22,-23,-14,-38,-12,-8,-14,-23,0,-22,-14,-14,-7,-14,-8,-29,-10,-35,-35,-37,-35,-35,-35,-37,-21,-21,-21,-21,-21,-28,-28,-28,-8,-8,0,-29,0,-29,0,-8,-8,-8,-8,-8,-8,-8,-8,-8,-8,-8,0,-8,-8,-23,0,-8,0,-8,-8,-8,-8,-8,0,-8,0,0,0,-15,0,0,0,0,0,0,0,0,0,0,18,0,15,0,32,32,82,60,79,79,79,80,137,137,190,123,116,104,105,104,113,99,110,22,22,0,0,0,89,0,22,0,0,0,24,0,0]} 1. e4 {[%emt 0:00:04]} e5 {[%emt 0:00:06]} 2. Nf3 {[%emt 0:00:01]} Nc6 {[%emt 0:00:03]} 3. Bc4 {[%emt 0:00:15]} Nf6 {[%emt 0:00:03]} 4. d3 {[%emt 0:00:03]} Bc5 {[%emt 0:00:04]} 5. Nc3 {[%emt 0:00:01]} h6 {[%emt 0:00:30]} 6. Be3 {[%emt 0:00:03]} Bxe3 {[%emt 0:01:15]} 7. fxe3 {[%emt 0:00:03]} d6 {[%emt 0:00:05]} 8. Qe2 {[%emt 0:00:01] C50: Hungarian Defence and Giuoco Pianissimo.} Be6 {[%emt 0:00:15] [#]} 9. Rf1 $146 {[%emt 0:00:02]} ({Predecessor:} 9. Bb3 O-O 10. O-O-O Bxb3 11. axb3 Ne7 12. h3 c6 13. g4 Nh7 14. h4 g6 15. g5 h5 {1-0 Seleng,S (1219)-Piovar,R (1421) SVK-ch U10 Lubovna 2013 (6)}) 9... Bxc4 {[%emt 0:04:19]} 10. dxc4 {[%emt 0:00:03]} Qd7 {[%emt 0:00:05]} 11. O-O-O {[%emt 0:00:21]} O-O-O {[%emt 0:00:10]} 12. Nd2 {[%emt 0:00:01]} Ne7 {[%emt 0:01:31]} 13. Nb3 {[%emt 0:00:22]} Qe6 {[%emt 0:00:39]} 14. Nd5 {[%emt 0:01:24]} Nd7 {[%emt 0:00:49]} (14... Nxe4 $2 15. Nxe7+ Qxe7 16. Qg4+ Rd7 17. Qxe4 $18) 15. Qd3 {[%emt 0:01:39]} Kb8 {[%emt 0:01:41]} 16. h3 {[%emt 0:01:48]} Nc5 {[%emt 0:00:09]} 17. Nxc5 {[%emt 0:00:48]} dxc5 {[%emt 0:00:00]} 18. Qe2 {[%emt 0:00:09]} c6 {[%emt 0:00:30]} 19. Nc3 {[%emt 0:00:03]} f6 {[%emt 0:00:29]} 20. b3 {[%emt 0:00:03]} (20. Rxd8+ {simplifies} Rxd8 21. b3 b6 22. g4) 20... Kc7 {[%emt 0:00:19]} 21. Qh5 {[%emt 0:00:39]} (21. g4 {simplifies} Rxd1+ 22. Nxd1 Nc8 23. Nf2) 21... Nc8 {[%emt 0:00:34]} 22. Qg6 {[%emt 0:00:11]} Rd7 {[%emt 0:00:27]} 23. Rxd7+ {[%emt 0:00:20]} Qxd7 {[%emt 0:00:01]} 24. Rd1 {[%emt 0:00:00]} Nd6 {[%emt 0:00:03]} 25. a3 {[%emt 0:03:32]} h5 {[%emt 0:00:27][%cal Bh6h5,Bh5h4][%mdl 32]} 26. Qg3 {[%emt 0:00:12]} h4 {[%emt 0:00:14]} 27. Qe1 {[%emt 0:00:02]} Qe6 {[%emt 0:00:28]} 28. Rd3 {[%emt 0:00:13]} b6 {[%emt 0:00:09]} 29. Qd1 {[%emt 0:00:29]} g6 {[%emt 0:00:26]} 30. Rd2 {[%emt 0:00:22]} Rd8 {[%emt 0:00:09]} 31. Qe1 {[%emt 0:00:05]} Rh8 {[%emt 0:00:04]} 32. Qe2 {[%emt 0:00:09]} Rd8 {[%emt 0:00:03]} 33. Rd1 {[%emt 0:00:10]} Rh8 {[%emt 0:00:18]} 34. Rf1 {[%emt 0:00:03]} g5 {[%emt 0:00:13]} 35. Rf2 {[%emt 0:00:10]} Rg8 {[%emt 0:00:03]} 36. Qh5 {[%emt 0:00:03]} Rf8 {[%emt 0:00:03]} 37. Rd2 {[%emt 0:00:12]} Qf7 {[%emt 0:00:06]} 38. Qg4 {[%emt 0:00:20]} Qd7 {[%emt 0:00:01] Black wants to play ...Qxg4.} (38... a6 {with more complications.} 39. a4 a5 40. Rd3 Qe7) 39. Qd1 {[%emt 0:00:07]} Qe6 {[%emt 0:00:03]} (39... a5 {is more complex.} 40. a4 Qe7 41. Qg4 Rd8) 40. Rd3 {[%emt 0:00:11]} Rg8 {[%emt 0:00:03]} 41. Rd2 {[%emt 0:00:23]} Rf8 {[%emt 0:00:02]} 42. Kb1 {[%emt 0:00:05]} Rg8 {[%emt 0:00:02]} 43. a4 {[%emt 0:00:16]} a5 {[%emt 0:00:03]} 44. Qh5 {[%emt 0:00:06]} Qf7 {[%emt 0:00:02]} 45. Qf3 {[%emt 0:00:01]} Qe6 {[%emt 0:00:03]} 46. Nd1 {[%emt 0:00:22]} g4 {[%emt 0:00:05]} 47. hxg4 {[%emt 0:00:01]} Rxg4 {[%emt 0:00:02]} 48. Nf2 {[%emt 0:00:01]} Rg3 {[%emt 0:00:02]} 49. Qh5 {[%emt 0:00:01]} Rxg2 {[%emt 0:00:06] ...h3 would be deadly.} 50. Qxh4 {[%emt 0:00:04]} (50. Qh8 $2 h3 51. Kc1 h2 $19) 50... Qf7 {[%emt 0:00:04]} 51. Qh3 {[%emt 0:00:04]} Rg8 {[%emt 0:00:03]} 52. Qf3 {[%emt 0:00:05]} Qe6 {[%emt 0:00:02]} 53. Rd1 {[%emt 0:00:03]} f5 {[%emt 0:00:04]} 54. Rh1 {[%emt 0:00:05]} (54. Qh1 {keeps more tension.} Rg7 55. Qh8 Qg8 56. Qh6) 54... Rg7 {[%emt 0:00:01] Prevents Rh7.} 55. Rh8 {[%emt 0:00:06]} Kb7 {[%emt 0:00:06]} 56. Qh3 {[%emt 0:00:19]} Rf7 {[%emt 0:00:02]} (56... Nxe4 $2 57. Nxe4 Qg6 58. Qxf5 Qxf5 59. Nd6+ Kc7 60. Nxf5 $18) (56... Qf6 $14) 57. Rh6 {[%emt 0:00:04]} Qe7 {[%emt 0:00:03]} 58. exf5 {[%emt 0:00:07]} Nxf5 {[%emt 0:00:01]} 59. Rh8 {[%emt 0:00:01]} Qd7 {[%emt 0:00:06]} ({Black should try} 59... Rf8) 60. Ne4 $16 {[%emt 0:00:04]} Kc7 {[%emt 0:00:04]} (60... Qd1+ $16 61. Kb2 Ka7) 61. Qh2 {[%emt 0:00:17]} (61. Qh5 $18 {Hoping for Qg6.} Kb7 62. Qg6) 61... Re7 {[%emt 0:00:02]} 62. Ra8 {[%emt 0:00:07] White wants to mate with Qh8.} Kb7 {[%emt 0:00:03]} (62... Nxe3 $2 63. Ra7+ Kb8 64. Rxd7 $18) 63. Qh8 {[%emt 0:00:02][%csl Ga8][%cal Rh8b8]} Qc7 {[%emt 0:00:01] Wards off Qb8+} 64. Qf8 $40 {[%emt 0:00:12][%mdl 128] White goes for the king. White has more active pieces.} Rf7 {[%emt 0:00:04] [#]} 65. Qe8 {[%emt 0:00:00]} (65. Rb8+ $1 $16 Ka6 66. Rc8 (66. Ra8+ Kb7 $16)) 65... Re7 $1 $11 {[%emt 0:00:02]} 66. Qg8 {[%emt 0:00:07]} (66. Qh8 $11) 66... Rg7 $16 {[%emt 0:00:02]} 67. Qf8 {[%emt 0:00:05]} Rf7 $1 {[%emt 0:00:01] [#]} 68. Qh8 {[%emt 0:00:10]} ({Better is} 68. Rb8+ $1 $16 Ka6 69. Rc8 (69. Ra8+ Kb7 $16)) 68... Rh7 {[%emt 0:00:05]} 69. Qe8 {[%emt 0:00:17]} (69. Rb8+ $5 Ka7 70. Rc8 (70. Ra8+ Kb7 $14) 70... Rxh8 71. Rxc7+ Ka8 72. Rxc6 $14) 69... Re7 $1 {[%emt 0:00:01]} 70. Qh8 {[%emt 0:00:05]} Rh7 {[%emt 0:00:02] Wards off Kc1} 71. Qe8 {[%emt 0:00:06][%cal Ob3b4]} (71. Rb8+ $5 Ka6 72. Qg8 $14 (72. Ra8+ Kb7 $14)) 71... Re7 $1 {[%emt 0:00:01] Black escapes into a draw.   Weighted Error Value: White=0.07 (flawless) /Black=0.12 (very precise)} 1/2-1/2

[Event "AI Cup Div-3 2023"]
[Site "Online"]
[Date "2023.09.26"]
[Round "4.1"]
[White "Alekseev, Evgeny"]
[Black "Sevian, Samuel"]
[Result "1/2-1/2"]
[Annotator "TA"]
[ECO "B13"]
[WhiteElo "2573"]
[BlackElo "2698"]
[PlyCount "77"]
[EventDate "2023.09.18"]
[EventType "k.o."]
[EventCountry "NET"]
[SourceTitle "playchess.com"]
[Source "ChessBase"]
[SourceQuality "1"]
[TimeControl "900+3"]

{[%evp 15,77,28,36,32,35,37,39,33,40,13,14,9,6,8,17,-10,-2,-7,-10,-17,9,13,9,-2,0,-10,0,0,15,6,18,12,14,13,12,5,21,26,49,44,42,40,79,55,83,20,97,87,93,73,87,89,94,86,91,85,89,68,70,61,78,52,55,0]} 1. e4 {[%emt 0:00:04]} c6 {[%emt 0:00:18]} 2. d4 {[%emt 0:00:10]} d5 {[%emt 0:00:01]} 3. exd5 {[%emt 0:00:01]} cxd5 {[%emt 0:00:01]} 4. Bd3 {[%emt 0:00:02]} Nc6 {[%emt 0:00:10]} 5. c3 {[%emt 0:00:01]} Nf6 {[%emt 0:00:26]} 6. Bf4 {[%emt 0:00:31]} Bg4 {[%emt 0:00:08]} 7. Qb3 {[%emt 0:00:03]} Qc8 {[%emt 0:00:01]} 8. Nd2 {[%emt 0:00:12]} Bh5 {[%emt 0:00:01]} 9. Ngf3 {[%emt 0:00:27] B13: Caro-Kann: Exchange Variation and Panov-Botvinnik Attack.} Bg6 {[%emt 0:00:02]} 10. Be2 {[%emt 0:01:04]} e6 {[%emt 0:00:01]} 11. O-O {[%emt 0:00:08]} Be7 {[%emt 0:00:03]} 12. Rfe1 {[%emt 0:00:35]} O-O {[%emt 0:00:02] [#]} 13. a4 $146 {[%emt 0:01:10]} ({Predecessor:} 13. Bf1 a6 14. a4 Ne4 15. Nxe4 Bxe4 16. Nd2 Bg6 17. Bg3 Qd7 18. Qa2 Bd6 19. a5 Bxg3 20. hxg3 {1-0 Seul,G (2372)-Ronka,E (2281) Titled Tuesday intern op 08th Sept blitz 2020 (1)}) 13... Nh5 {[%emt 0:01:46]} 14. Be3 {[%emt 0:00:06]} Qc7 {[%emt 0:00:05] Repels Ne5} 15. Qd1 {[%emt 0:01:37]} Nf4 {[%emt 0:00:13]} 16. Bxf4 {[%emt 0:00:02]} Qxf4 {[%emt 0:00:01]} 17. Nb3 {[%emt 0:00:08]} Bd6 {[%emt 0:00:23]} 18. g3 {[%emt 0:01:01]} Qf6 {[%emt 0:01:15]} 19. Bd3 {[%emt 0:00:08]} Bh5 {[%emt 0:00:04]} 20. Be2 {[%emt 0:00:02]} Rac8 {[%emt 0:02:33]} 21. Nh4 {[%emt 0:00:24]} Bg6 {[%emt 0:00:05]} 22. Nxg6 {[%emt 0:00:07]} hxg6 {[%emt 0:00:18]} 23. Bf1 {[%emt 0:00:22]} g5 {[%emt 0:00:09]} 24. Nd2 {[%emt 0:01:17]} e5 {[%emt 0:01:54]} 25. Qb3 {[%emt 0:00:17]} exd4 {[%emt 0:00:35]} 26. Qxd5 {[%emt 0:00:02] [#] Threatens to win with Ne4.} Rfd8 {[%emt 0:02:37][%cal Od6g3] Strongly threatening ...Bxg3!} 27. Ne4 {[%emt 0:01:57][%csl LRf6,LRg5]} Qe5 {[%emt 0:00:02]} 28. Qb5 {[%emt 0:00:20]} Qxb5 {[%emt 0:01:02]} 29. axb5 {[%emt 0:00:03]} Ne5 {[%emt 0:00:00] [#] aiming for ...Nf3+.} 30. Red1 {[%emt 0:00:41]} (30. Kg2 $16 {Hoping for Nxd6.} Bb8 31. Nxg5) 30... Bb8 {[%emt 0:00:25]} (30... dxc3 $1 $11 {keeps the balance.} 31. bxc3 (31. Nxd6 $2 {perishes.} c2 $19) (31. Rxd6 Rxd6 32. Nxd6 cxb2 $11) 31... Be7) 31. cxd4 {[%emt 0:01:02]} ({Inferior is} 31. Rxd4 Nf3+ 32. Kg2 Nxd4 33. cxd4 g4 $17) 31... Nf3+ {[%emt 0:00:48]} 32. Kg2 {[%emt 0:00:01]} Nxd4 {[%emt 0:00:01]} 33. Nxg5 {[%emt 0:00:08]} Kf8 {[%emt 0:00:00]} 34. h4 {[%emt 0:00:53]} g6 {[%emt 0:00:31]} 35. Rd3 {[%emt 0:00:21] And now Rad1 would win.} Nf5 {[%emt 0:00:01]} 36. Rad1 {[%emt 0:00:11]} Rxd3 {[%emt 0:00:01]} 37. Bxd3 {[%emt 0:00:02]} Nd6 {[%emt 0:00:01]} 38. Rh1 {[%emt 0:00:41] White is more active.} Rc5 {[%emt 0:00:19]} 39. Rd1 {[%emt 0:00:15] Weighted Error Value: White=0.09 (flawless) /Black=0.10 (very precise)} ({White should play} 39. Re1 $14) 1/2-1/2

[Event "AI Cup Div-3 2023"]
[Site "Online"]
[Date "2023.09.26"]
[Round "4.2"]
[White "Robson, Ray"]
[Black "Mamedov, Rauf"]
[Result "1/2-1/2"]
[Annotator "TA"]
[ECO "D17"]
[WhiteElo "2699"]
[BlackElo "2640"]
[PlyCount "116"]
[EventDate "2023.09.18"]
[EventType "k.o."]
[EventCountry "NET"]
[SourceTitle "playchess.com"]
[Source "ChessBase"]
[SourceQuality "1"]
[TimeControl "900+3"]

{[%evp 13,116,12,29,20,31,23,35,37,52,50,50,31,55,26,57,61,65,64,100,93,106,93,106,90,101,67,114,128,124,125,169,156,164,170,156,163,171,131,135,143,190,181,162,182,192,187,199,156,142,139,137,137,226,218,226,224,221,149,149,148,148,148,146,139,254,141,139,77,77,77,77,37,77,77,77,77,77,77,77,77,77,77,77,77,12840,77,178,191,12839,0,94,0,0,0,0,0,0,0,0,0,0,0,0,0,0]} 1. d4 {[%emt 0:00:04]} Nf6 {[%emt 0:00:17]} 2. c4 {[%emt 0:00:03]} c6 {[%emt 0:00:03]} 3. Nc3 {[%emt 0:00:18]} d5 {[%emt 0:00:02]} 4. Nf3 {[%emt 0:00:03]} dxc4 {[%emt 0:00:05]} 5. a4 {[%emt 0:00:08]} Bf5 {[%emt 0:00:02]} 6. Ne5 {[%emt 0:00:07]} Nbd7 {[%emt 0:00:02] 6...Nbd7 is better than 6...e6.} 7. Nxc4 {[%emt 0:00:01]} Nb6 {[%emt 0:00:05]} 8. e3 {[%emt 0:00:19] D17: Slav Defence: 5 a4 Bf5: Lines with 6 Nh4 and 6 Ne5.} e6 {[%emt 0:00:23]} 9. Qb3 {[%emt 0:00:05] Inhibits Bb4.} Nxc4 {[%emt 0:01:24]} 10. Bxc4 {[%emt 0:00:05] White is slightly better.} Rb8 {[%emt 0:00:03]} 11. f3 {[%emt 0:01:41]} Bg6 {[%emt 0:00:14]} 12. O-O {[%emt 0:00:19] [#]} a5 $146 {[%emt 0:00:04]} ({Predecessor:} 12... Bd6 13. e4 Bc7 14. Be3 O-O 15. Rad1 Bb6 16. Ne2 Qe7 17. Nf4 Rfd8 18. Kh1 Nd7 19. Nxg6 hxg6 {1-0 Sarana,A (2654)-Holt,C (2549) Titled Tuesday intern op 15th Sept blitz 2020 (5)}) 13. Rd1 {[%emt 0:00:23]} Bb4 {[%emt 0:00:04]} 14. e4 {[%emt 0:00:04]} Qc7 {[%emt 0:00:43] Inhibits Bf4.} 15. Ne2 {[%emt 0:02:27][%cal Bc3e2,Be2f4,Bf4d3][%mdl 32] Hoping for Bf4.} Rd8 {[%emt 0:00:05]} 16. Bf4 {[%emt 0:00:38]} Qb6 {[%emt 0:00:11]} 17. Be3 {[%emt 0:00:59]} Qc7 {[%emt 0:00:08]} 18. Nf4 {[%emt 0:01:54]} O-O {[%emt 0:00:54]} 19. Nd3 {[%emt 0:00:08]} Be7 {[%emt 0:00:45]} (19... Nd5 $14 20. exd5 exd5) 20. Bf4 $16 {[%emt 0:00:12]} Qc8 {[%emt 0:00:03]} 21. Qb6 {[%emt 0:01:09]} Qa8 {[%emt 0:01:14]} 22. Bc7 {[%emt 0:00:39][%csl LRa5,LRd8]} Rd7 {[%emt 0:01:18]} 23. Nc5 $1 {[%emt 0:00:31]} (23. Qxa5 $6 Rxd4 24. Qxa8 Rxa8 $14) (23. Ne5 $6 Bd8 24. Bxd8 (24. Nxd7 Nxd7 25. Bxd8 Nxb6 $11) 24... Rdxd8 $16) 23... Bxc5 {[%emt 0:03:10]} 24. dxc5 {[%emt 0:00:00]} Rc8 {[%emt 0:00:03]} 25. Rxd7 {[%emt 0:02:27]} (25. Qxa5 $2 {too greedy.} Rdxc7 26. Qxa8 Rxa8 $19) 25... Nxd7 {[%emt 0:00:02] Black is weak on the dark squares} 26. Qxa5 {[%emt 0:00:01] White has more active pieces.} Nxc5 {[%emt 0:00:01]} (26... Qxa5 $16 27. Bxa5 Nxc5) 27. Qxa8 $1 $18 {[%emt 0:00:30]} Rxa8 {[%emt 0:00:01]} 28. a5 {[%emt 0:00:05]} b5 {[%emt 0:01:21] White must now prevent ...Na6.} 29. Be2 {[%emt 0:00:19]} f5 {[%emt 0:00:01]} 30. exf5 {[%emt 0:00:31]} exf5 {[%emt 0:00:12]} 31. Kf2 {[%emt 0:00:22]} Be8 {[%emt 0:00:24]} 32. Rc1 {[%emt 0:00:03]} Nb3 {[%emt 0:00:40]} (32... Na6 $16 {was worth a try.}) 33. Rc3 {[%emt 0:00:01]} Nd4 {[%emt 0:00:01]} 34. Bd3 {[%emt 0:00:02]} c5 {[%emt 0:01:32]} 35. Rxc5 {[%emt 0:00:05]} Ne6 {[%emt 0:00:02]} 36. Rc1 {[%emt 0:00:04] b4 is the strong threat.} ({Not} 36. Rxf5 Nxc7 37. Rc5 Ra7 $15) 36... Nxc7 {[%emt 0:00:01]} 37. Rxc7 {[%emt 0:00:01]} Rxa5 {[%emt 0:00:01]} 38. Bxf5 $16 {[%emt 0:00:04][%mdl 4096] Endgame KRB-KRB} Kf8 {[%emt 0:00:38]} (38... h6 $16 {is a better defense.} 39. Be6+ Kf8) 39. Bxh7 {[%emt 0:00:04]} (39. Rc8 $1 $18) 39... Ra2 {[%emt 0:00:02]} 40. Bf5 {[%emt 0:00:04]} (40. Ke3 $142) 40... Rxb2+ {[%emt 0:00:01]} 41. Kg3 {[%emt 0:00:03]} b4 {[%emt 0:00:01]} 42. Rb7 {[%emt 0:00:03]} Bf7 {[%emt 0:00:05] Prevents Be6.} 43. h4 {[%emt 0:00:03]} b3 {[%emt 0:00:02]} 44. Kh3 {[%emt 0:00:01]} Rf2 {[%emt 0:00:02]} 45. Be4 $1 {[%emt 0:00:03]} b2 {[%emt 0:00:02] [#]} 46. g4 $1 {[%emt 0:00:02]} ({Much weaker is} 46. Kg3 Re2 $11) 46... Ba2 {[%emt 0:00:01]} 47. Kg3 {[%emt 0:00:02]} Re2 {[%emt 0:00:01][%cal Oe2e4]} 48. Bg6 {[%emt 0:00:03] Threatens to win with Rb8+.} Bd5 $2 {[%emt 0:00:06][%mdl 8192]} (48... Rd2 $16) 49. Rb5 $2 {[%emt 0:00:06]} (49. Rb8+ $18 Ke7 50. Re8+ {[%mdl 64] Skewer} Kd6 51. Rxe2) 49... Bc6 {[%emt 0:00:13] [#]} (49... Rd2 $16 {was called for.}) 50. Rb6 $1 $18 {[%emt 0:00:02]} Bd5 {[%emt 0:00:00]} (50... Bd7 51. h5 Ke7) 51. Rb5 $2 {[%emt 0:00:02]} (51. Rb8+ $18 {is the precise move to win.} Ke7 52. Re8+ {[%mdl 64] Skewer} Kf6 53. Rxe2 Kxg6 54. Rxb2) 51... Bc6 $1 $16 {[%emt 0:00:01]} 52. Rc5 {[%emt 0:00:02]} (52. Rb8+ $16 Ke7 53. h5) 52... Re4 {[%emt 0:00:29] The position is equal.} 53. Rxc6 {[%emt 0:00:07]} b1=Q {[%emt 0:00:02] ...Qb8+ would be deadly.} 54. Bxe4 {[%emt 0:00:01]} Qe1+ {[%emt 0:00:01]} 55. Kh3 {[%emt 0:00:05]} Qh1+ {[%emt 0:00:01]} 56. Kg3 {[%emt 0:00:01]} Qe1+ {[%emt 0:00:01]} 57. Kh3 {[%emt 0:00:02]} Qh1+ {[%emt 0:00:01]} 58. Kg3 {[%emt 0:00:01]} Qe1+ {[%emt 0:00:01] Weighted Error Value: White=0.29 (precise) /Black=0.16 (very precise)} 1/2-1/2